[Event "85th Tata Steel Masters 2023"]
[Site "Wijk aan Zee"]
[Date "2023.01.29"]
[Round "13.5"]
[White "Aronian, Levon"]
[Black "Maghsoodloo, Parham"]
[Result "0-1"]
[ECO "B92"]
[WhiteElo "2735"]
[BlackElo "2719"]
[Annotator "TA"]
[PlyCount "118"]
[EventDate "2023.01.10"]
[EventType "tourn"]
[EventCountry "NED"]
[SourceTitle "playchess.com"]
[Source "ChessBase"]
[SourceQuality "1"]
[TimeControl "40/6000+30:30/3000+30:900+30"]

{[%evp 21,118,0,8,1,20,19,28,18,19,15,26,8,20,18,6,4,24,4,4,0,20,15,20,18,9,6,20,27,33,26,18,-23,-39,-51,-44,-64,-61,-66,-65,-72,-71,-74,-46,-52,-59,-89,-118,-95,-79,-112,-106,-105,-112,-215,-195,-298,-155,-210,-132,-125,-131,-141,-121,-443,-287,-266,-268,-265,-272,-348,-339,-341,-345,-331,-329,-349,-290,-408,-399,-506,-510,-522,-500,-491,-472,-377,-363,-1065,-822,-1056,-1002,-29956,-6408,-2355,-6207,-7200,-6581,-5314,-5293]} 1. e4 {[%emt 0:00:02]} c5 {[%emt 0:00:39]} 2. Nf3 {[%emt 0:00:05]} d6 {[%emt 0:00:05]} 3. d4 {[%emt 0:00:02]} cxd4 {[%emt 0:00:08]} 4. Nxd4 {[%emt 0:00:02]} Nf6 {[%emt 0:00:07]} 5. Nc3 {[%emt 0:00:03]} a6 {[%emt 0:00:05]} 6. Be2 {[%emt 0:00:07]} e5 {[%emt 0:07:17]} 7. Nb3 {[%emt 0:00:16]} Be7 {[%emt 0:00:17]} 8. Be3 {[%emt 0:00:06]} Be6 {[%emt 0:03:08]} 9. O-O {[%emt 0:00:17]} Nbd7 {[%emt 0:00:52]} 10. a4 {[%emt 0:01:54]} Rc8 {[%emt 0:03:46]} 11. a5 {[%emt 0:00:31]} O-O {[%emt 0:03:41][%cal Oc8c3]} (11... Rxc3 $5 12. bxc3 Nxe4 $11) 12. Bf3 {[%emt 0:00:51] [#] B92: Sicilian Najdorf: 6 Be2.} Ne8 $1 $146 {[%emt 0:05:38][%mdl 8] A top novelty.} ({Predecessor:} 12... Rc4 13. Nd2 Rb4 14. Qc1 Qc7 15. Nd5 Bxd5 16. exd5 Rb5 17. b4 e4 18. c4 Rxb4 19. Bd1 {½-½ Santos Ruiz,M (2581)-Korobov,A (2671) ESP-chT CECLUB Honor 2022 (3.1)}) 13. Qd2 {[%emt 0:05:45]} h6 {[%emt 0:00:21]} 14. h3 {[%emt 0:00:07] White has an edge.} Nef6 {[%emt 0:12:26]} 15. Rfd1 {[%emt 0:03:24]} Re8 {[%emt 0:00:36]} 16. Qe1 {[%emt 0:02:02]} Rc6 {[%emt 0:03:14]} 17. Nd2 {[%emt 0:01:24][%cal Bb3d2,Bd2f1,Bf1g3][%mdl 32]} Nf8 {[%emt 0:06:26][%cal Bd7f8,Bf8g6,Bg6h4][%mdl 32]} 18. Nf1 {[%emt 0:03:52]} Ng6 {[%emt 0:01:02]} 19. Ng3 {[%emt 0:00:17]} (19. Bb6 $5 {[%cal Rb6d8]} Qd7 20. Ne3 $11) 19... Qc8 {[%emt 0:05:06]} 20. Rd2 {[%emt 0:02:01]} Nh4 {[%emt 0:03:47][%cal Oe6h3]} 21. Be2 {[%emt 0:00:31]} Rxc3 {[%emt 0:08:53]} 22. bxc3 {[%emt 0:00:16][%cal Oc3c4]} d5 $1 {[%emt 0:00:03]} 23. f3 {[%emt 0:24:02]} Qxc3 {[%emt 0:03:28]} 24. Bf2 {[%emt 0:00:09]} d4 {[%emt 0:05:13]} 25. Rdd1 {[%emt 0:09:53]} Qc7 {[%emt 0:03:30]} (25... Qxc2 $2 26. Rdc1 Qb3 27. Rcb1 $18) 26. c3 {[%emt 0:03:19]} dxc3 {[%emt 0:00:44]} (26... Qxc3 27. Qxc3 dxc3 28. Rdb1 $16) 27. Bb6 {[%emt 0:00:10]} Qc6 {[%emt 0:02:06]} 28. Rdc1 {[%emt 0:05:59]} Rc8 $1 {[%emt 0:02:09]} 29. Bd1 {[%emt 0:01:18]} Nd7 {[%emt 0:04:42] Black is much more active.} 30. Ba4 {[%emt 0:08:44]} Qc4 {[%emt 0:00:25] [#] aiming for ...Nxb6.} 31. Bf2 {[%emt 0:00:20]} Bb4 {[%emt 0:03:15]} (31... Bg5 $5 {[%cal Rg5c1]} 32. Be3 Ng6 33. Bxg5 hxg5 $15) 32. Nf1 {[%emt 0:03:24]} Ng6 {[%emt 0:01:00]} (32... c2 33. Qe3 $16) 33. Ne3 {[%emt 0:06:19]} Qc7 {[%emt 0:00:32]} 34. Bxd7 {[%emt 0:20:56]} Qxd7 {[%emt 0:00:07]} (34... Bxd7 $6 35. Nd5 Qd6 36. Nb6 $11 (36. Nxc3 $2 Nf4 $19)) 35. Rcb1 {[%emt 0:00:25]} Bf8 {[%emt 0:03:45] This pair of bishops is nice.} 36. g3 {[%emt 0:01:02] Repels Nf4} c2 $36 {[%emt 0:04:15][%mdl 2048] White is under strong pressure.} (36... Bxh3 $6 37. Rc1 $15) (36... Bc5 {simplifies} 37. Qxc3 Bd4 38. Qd2 Bxa1 39. Qxd7 Bxd7 40. Rxa1 Bxh3 41. Rb1 Rc5) 37. Rc1 {[%emt 0:01:29]} (37. Rb2 $17 {only move.}) 37... Bb3 $19 {[%emt 0:00:07]} (37... Bxh3 38. Rxc2 Rxc2 39. Nxc2 $11) 38. Qe2 {[%emt 0:00:33]} (38. h4 $142) 38... Rc6 {[%emt 0:02:20]} (38... Qxh3 $19 {And now ...Rc6 would win.} 39. Qf1 Qxf1+ 40. Kxf1 h5) 39. Kg2 {[%emt 0:02:34]} (39. Kh2 $17) 39... Bb4 {[%emt 0:10:47] White must now prevent ...Bc3.} 40. Rxc2 {[%emt 0:00:18]} (40. Nxc2 $2 {perishes.} Bd2) 40... Bxc2 {[%emt 0:00:14]} 41. Nxc2 {[%emt 0:50:02]} Bc5 {[%emt 0:52:42][%cal Oc6d6] ...Rd6! is the strong threat.} 42. Rb1 $2 {[%emt 0:04:57][%mdl 8192] Loses the game.} (42. Ne3 $17) 42... Bxf2 {[%emt 0:01:36]} 43. Qxf2 {[%emt 0:00:03]} Rd6 {[%emt 0:00:05] Threatens to win with ...Rd2.} 44. Re1 {[%emt 0:00:03]} Qd8 {[%emt 0:00:00]} ({Don't blunder} 44... Rd2 $2 45. Re2 Rxe2 46. Qxe2 $19) 45. Ne3 {[%emt 0:00:00]} Rd2 {[%emt 0:00:00]} ({Not} 45... Qxa5 46. Nc4 Qd8 47. Nxd6 Qxd6 48. Re2 $14) 46. Re2 {[%emt 0:00:00]} Rxe2 {[%emt 0:00:00]} 47. Qxe2 {[%emt 0:00:00]} Qxa5 {[%emt 0:00:00][%mdl 4096] Endgame KQN-KQN} 48. Nd5 {[%emt 0:00:00]} Qa3 {[%emt 0:00:00]} 49. Qd2 {[%emt 0:00:00]} (49. Qf2 $142) 49... Ne7 {[%emt 0:00:00]} 50. Ne3 {[%emt 0:00:00]} Nc6 {[%emt 0:00:00]} 51. Nf5 {[%emt 0:00:00] [#]} Nd4 $1 {[%emt 0:00:00][%mdl 64] Deflection} 52. Nxd4 {[%emt 0:00:00]} exd4 {[%emt 0:00:00]} 53. Qxd4 {[%emt 0:00:00] KQ-KQ} Qa2+ {[%emt 0:00:00]} 54. Kg1 $2 {[%emt 0:00:00]} (54. Kf1 a5 55. Ke1) 54... a5 {[%emt 0:00:00][%cal Ba6a5,Ba5a4,Ba4a3,Ba3a2][%mdl 32] Hoping for ...a4.} 55. h4 {[%emt 0:00:00]} a4 {[%emt 0:00:00]} 56. h5 {[%emt 0:00:00]} Qb1+ {[%emt 0:00:00]} 57. Kg2 {[%emt 0:00:00] Black is clearly winning.} Qc2+ {[%emt 0:00:00]} 58. Kh3 {[%emt 0:00:00]} a3 {[%emt 0:00:00]} 59. g4 {[%emt 0:00:00]} a2 {[%emt 0:00:00] Weighted Error Value: White=0.48/Black=0.15 (very precise)} 0-1

[Event "85th Tata Steel Masters 2023"]
[Site "Wijk aan Zee"]
[Date "2023.01.29"]
[Round "13.6"]
[White "Ding, Liren"]
[Black "Caruana, Fabiano"]
[Result "1/2-1/2"]
[ECO "C78"]
[WhiteElo "2811"]
[BlackElo "2766"]
[Annotator "TA"]
[PlyCount "37"]
[EventDate "2023.01.10"]
[EventType "tourn"]
[EventCountry "NED"]
[SourceTitle "playchess.com"]
[Source "ChessBase"]
[SourceQuality "1"]
[TimeControl "40/6000+30:30/3000+30:900+30"]

{[%evp 21,37,0,0,0,27,16,22,25,25,23,0,0,0,0,0,0,0,0]} 1. e4 {[%emt 0:01:06]} e5 {[%emt 0:00:06]} 2. Nf3 {[%emt 0:00:22]} Nc6 {[%emt 0:00:06]} 3. Bb5 {[%emt 0:00:08][%cal Bf1b5,Bb5a4,Ba4b3][%mdl 32]} a6 {[%emt 0:00:05]} 4. Ba4 {[%emt 0:00:05]} Nf6 {[%emt 0:00:04]} 5. O-O {[%emt 0:00:06]} b5 {[%emt 0:00:11]} 6. Bb3 {[%emt 0:00:05]} Bc5 {[%emt 0:00:04]} 7. c3 {[%emt 0:02:07]} d6 {[%emt 0:00:18]} 8. d4 {[%emt 0:00:07]} Bb6 {[%emt 0:00:06]} 9. Be3 {[%emt 0:00:05]} O-O {[%emt 0:00:16]} 10. Nbd2 {[%emt 0:00:05]} h6 {[%emt 0:02:11]} 11. h3 {[%emt 0:04:40]} Re8 {[%emt 0:02:44]} 12. Re1 {[%emt 0:01:25] C78: Ruy Lopez: Archangelsk and Möller Defences.} Rb8 {[%emt 0:00:53]} 13. Bc2 {[%emt 0:02:31]} Bb7 {[%emt 0:00:36]} 14. a3 {[%emt 0:17:36]} exd4 $5 {[%emt 0:01:53][%mdl 4] An interesting side line.} 15. cxd4 {[%emt 0:00:13]} Ne7 {[%emt 0:00:07]} 16. Nh4 {[%emt 0:07:28] [#] The position is equal.} Nc6 $146 {[%emt 0:00:23]} ({Predecessor:} 16... c5 17. dxc5 dxc5 18. e5 Nfd5 19. Bxh6 gxh6 20. Qh5 Kg7 21. e6 Rf8 22. Nf5+ Nxf5 23. Qxf5 Nf6 24. Re3 Rg8 25. Rg3+ Kf8 26. Rxg8+ Kxg8 27. exf7+ {0-1 Kulaots,K (2513)-Prraneeth,V (2427) Rilton Cup 50th 2022 (7)}) 17. Nhf3 {[%emt 0:02:44]} Ne7 {[%emt 0:00:18]} 18. Nh4 {[%emt 0:00:04]} Nc6 {[%emt 0:00:04]} 19. Nhf3 {[%emt 0:00:09] An uneventful encounter.   Weighted Error Value: White=0.00 (flawless) /Black=0.04 (flawless)} 1/2-1/2

[Event "85th Tata Steel Masters 2023"]
[Site "Wijk aan Zee"]
[Date "2023.01.29"]
[Round "13.7"]
[White "Keymer, Vincent"]
[Black "Gukesh D"]
[Result "1/2-1/2"]
[ECO "E51"]
[WhiteElo "2696"]
[BlackElo "2725"]
[Annotator "TA"]
[PlyCount "62"]
[EventDate "2023.01.10"]
[EventType "tourn"]
[EventCountry "NED"]
[SourceTitle "playchess.com"]
[Source "ChessBase"]
[SourceQuality "1"]
[TimeControl "40/6000+30:30/3000+30:900+30"]

{[%evp 13,62,0,0,-6,12,0,0,-9,53,62,48,59,57,52,54,42,80,10,10,16,18,27,23,0,0,-8,-8,-5,-5,-4,0,0,0,0,0,0,0,0,0,0,0,0,0,0,-4,-4,-4,-4,-4,-5,-6]} 1. d4 {[%emt 0:00:03]} Nf6 {[%emt 0:00:11]} 2. c4 {[%emt 0:00:04]} e6 {[%emt 0:00:07]} 3. Nf3 {[%emt 0:00:04]} d5 {[%emt 0:00:17]} 4. Nc3 {[%emt 0:00:04]} Bb4 {[%emt 0:00:41]} 5. e3 {[%emt 0:00:10]} O-O {[%emt 0:00:14]} 6. Bd2 {[%emt 0:00:03]} b6 {[%emt 0:01:55]} 7. cxd5 {[%emt 0:00:13]} exd5 {[%emt 0:00:07]} 8. Bd3 {[%emt 0:00:05] E51: Nimzo-Indian: Rubinstein: 4...0-0 5 Nf3 d5.} Re8 {[%emt 0:01:16]} 9. O-O {[%emt 0:00:17]} Bd6 {[%emt 0:02:41]} 10. Re1 {[%emt 0:00:11] [#]} Bg4 $146 {[%emt 0:12:05]} (10... Ba6 $11 11. Bc2 Bb7) ({Predecessor:} 10... Bb7 11. Qc2 Na6 12. a3 c5 13. Rad1 c4 14. Bf5 Ne4 15. Bc1 Qe7 16. Bxe4 dxe4 {0-1 Loik,G (2002)-Lukyanenko,V (2195) UKR VC email 2017}) 11. h3 {[%emt 0:07:45]} Bh5 {[%emt 0:00:08]} 12. e4 {[%emt 0:04:25]} dxe4 {[%emt 0:00:18]} 13. Nxe4 {[%emt 0:00:07]} Nbd7 {[%emt 0:02:04]} 14. Bg5 {[%emt 0:02:20][%cal Od3b5]} Qc8 {[%emt 0:18:08]} 15. Bxf6 {[%emt 0:06:02]} (15. Qb3 $16) 15... Nxf6 $11 {[%emt 0:00:09]} 16. Nxf6+ {[%emt 0:00:16]} gxf6 {[%emt 0:00:02]} 17. Be4 {[%emt 0:03:13]} Rb8 {[%emt 0:00:28]} 18. Qd3 {[%emt 0:12:11]} Bg6 {[%emt 0:00:13] The position is equal.} 19. Nh4 {[%emt 0:06:27]} Qe6 {[%emt 0:03:46][%cal Rg6e4] Inhibits g4.} 20. Nxg6 {[%emt 0:19:31]} hxg6 {[%emt 0:00:32]} 21. Qc3 $132 {[%emt 0:03:33][%mdl 2048] [#] And now Bc6 would win. White is not holding back} Qd7 {[%emt 0:05:42]} 22. Qc4 {[%emt 0:08:44]} Kg7 {[%emt 0:05:38]} 23. Bc6 {[%emt 0:01:34]} Rxe1+ {[%emt 0:00:09]} 24. Rxe1 {[%emt 0:00:05]} Qf5 {[%emt 0:00:40]} 25. g3 {[%emt 0:04:15]} ({Not} 25. Be8 $2 Rxe8 26. Qc3 (26. Rxe8 $2 {too greedy.} Qb1+ 27. Qf1 Bh2+ {[%mdl 64] Deflection} 28. Kxh2 Qxf1 $19) 26... Rxe1+ 27. Qxe1 Qf4 $19) 25... Rh8 {[%emt 0:05:22]} ({But not} 25... Qxh3 26. Be8 Rxe8 27. Rxe8 $16) 26. h4 {[%emt 0:04:48]} Qg4 {[%emt 0:06:58][%cal Od6g3]} 27. Re4 {[%emt 0:01:31]} Qh3 {[%emt 0:02:31]} 28. Qf1 {[%emt 0:01:54]} Qc8 {[%emt 0:00:23]} 29. Qe2 {[%emt 0:02:00]} f5 {[%emt 0:03:06]} 30. Re8 {[%emt 0:00:39]} Rxe8 {[%emt 0:00:05]} 31. Qxe8 {[%emt 0:00:13]} Qxe8 {[%emt 0:00:05] Weighted Error Value: White=0.09 (flawless) /Black=0.08 (flawless)} 1/2-1/2